[Event "Titled Tuesday Blitz February 14 Early 2023"]
[White "Sarana, Alexey"]
[Black "Madaminov, Mukhiddin"]
[WhiteFideId "24133795"]
[BlackFideId "14210703"]
[WhiteElo "2685"]
[BlackElo "2422"]
[Result "1-0"]
[Round "11"]
[TimeControl "180+2"]
[Date "2023.02.14"]
[WhiteClock "0:00:49"]
[BlackClock "0:00:02"]

1. c4 {[%clk 0:03:00]}  g6 {[%clk 0:02:59]} 2. d4 {[%clk 0:02:58]}  Nf6 {[%clk 0:02:58]} 3. Nc3 {[%clk 0:02:58]}  d5 {[%clk 0:02:58]} 4. Bf4 {[%clk 0:02:58]}  Bg7 {[%clk 0:02:53]} 5. e3 {[%clk 0:02:58]}  O-O {[%clk 0:02:47]} 6. Rc1 {[%clk 0:02:58]}  c6 {[%clk 0:02:09]} 7. Nf3 {[%clk 0:02:57]}  Bg4 {[%clk 0:02:08]} 8. h3 {[%clk 0:02:56]}  Bxf3 {[%clk 0:02:08]} 9. Qxf3 {[%clk 0:02:57]}  e6 {[%clk 0:02:08]} 10. Bd3 {[%clk 0:02:55]}  Nbd7 {[%clk 0:02:06]} 11. O-O {[%clk 0:02:54]}  Re8 {[%clk 0:02:06]} 12. cxd5 {[%clk 0:02:52]}  exd5 {[%clk 0:01:51]} 13. b4 {[%clk 0:02:52]}  a6 {[%clk 0:01:50]} 14. a4 {[%clk 0:02:52]}  b5 {[%clk 0:01:49]} 15. axb5 {[%clk 0:02:28]}  axb5 {[%clk 0:01:47]} 16. Nb1 {[%clk 0:02:28]}  Re6 {[%clk 0:01:36]} 17. Nd2 {[%clk 0:02:14]}  Nb6 {[%clk 0:01:31]} 18. Nb3 {[%clk 0:02:13]}  Nc4 {[%clk 0:01:31]} 19. Nc5 {[%clk 0:02:09]}  Re7 {[%clk 0:01:27]} 20. Bxc4 {[%clk 0:01:54]}  bxc4 {[%clk 0:01:23]} 21. Bg5 {[%clk 0:01:54]}  Qd6 {[%clk 0:01:14]} 22. Rb1 {[%clk 0:01:32]}  h6 {[%clk 0:00:52]} 23. Bf4 {[%clk 0:01:31]}  Qd8 {[%clk 0:00:51]} 24. Bxh6 {[%clk 0:01:32]}  Ne4 {[%clk 0:00:38]} 25. Bxg7 {[%clk 0:01:30]}  Kxg7 {[%clk 0:00:32]} 26. Nxe4 {[%clk 0:01:26]}  Rxe4 {[%clk 0:00:32]} 27. b5 {[%clk 0:01:26]}  Qb6 {[%clk 0:00:30]} 28. bxc6 {[%clk 0:01:23]}  Qxc6 {[%clk 0:00:30]} 29. Rfc1 {[%clk 0:01:20]}  Ra2 {[%clk 0:00:30]} 30. Rb8 {[%clk 0:01:18]}  Qc7 {[%clk 0:00:27]} 31. Rb5 {[%clk 0:01:15]}  Qd6 {[%clk 0:00:21]} 32. Rc5 {[%clk 0:01:06]}  f5 {[%clk 0:00:18]} 33. Rb1 {[%clk 0:01:02]}  Kh6 {[%clk 0:00:18]} 34. Rc8 {[%clk 0:01:00]}  Kg7 {[%clk 0:00:04]} 35. Rb7+ {[%clk 0:00:55]}  Re7 {[%clk 0:00:05]} 36. Rxe7+ {[%clk 0:00:54]}  Qxe7 {[%clk 0:00:05]} 37. Qxd5 {[%clk 0:00:53]}  Ra1+ {[%clk 0:00:05]} 38. Kh2 {[%clk 0:00:53]}  Rf1 {[%clk 0:00:03]} 39. Qxc4 {[%clk 0:00:47]}  Qd6+ {[%clk 0:00:03]} 40. f4 {[%clk 0:00:48]}  Re1 {[%clk 0:00:03]} 41. Qc7+ {[%clk 0:00:47]}  Qxc7 {[%clk 0:00:03]} 42. Rxc7+ {[%clk 0:00:48]}  Kf6 {[%clk 0:00:03]} 43. Rc3 {[%clk 0:00:48]}  Re2 {[%clk 0:00:03]} 44. Kg3 {[%clk 0:00:49]}  Rd2 {[%clk 0:00:03]} 45. Kf3 {[%clk 0:00:49]}  g5 {[%clk 0:00:02]} 46. Rc6+ {[%clk 0:00:49]} 1-0


[Site "https://www.chess.com"]

[Event "Titled Tuesday Blitz February 14 Early 2023"]
[White "Ibarra Jerez, Jose Carlos"]
[Black "Predke, Alexandr"]
[WhiteFideId "2226332"]
[BlackFideId "24107581"]
[WhiteElo "2563"]
[BlackElo "2685"]
[Result "1-0"]
[Round "11"]
[TimeControl "180+2"]
[Date "2023.02.14"]
[WhiteClock "0:00:05"]
[BlackClock "0:00:04"]

1. e4 {[%clk 0:03:00]}  c5 {[%clk 0:02:59]} 2. Nc3 {[%clk 0:02:59]}  Nc6 {[%clk 0:02:58]} 3. Nge2 {[%clk 0:02:59]}  e6 {[%clk 0:02:54]} 4. d4 {[%clk 0:02:59]}  cxd4 {[%clk 0:02:54]} 5. Nxd4 {[%clk 0:03:00]}  Qc7 {[%clk 0:02:55]} 6. g4 {[%clk 0:03:00]}  a6 {[%clk 0:02:51]} 7. Be3 {[%clk 0:03:00]}  h6 {[%clk 0:02:45]} 8. Nxc6 {[%clk 0:02:54]}  bxc6 {[%clk 0:02:44]} 9. Bc4 {[%clk 0:02:47]}  Rb8 {[%clk 0:02:29]} 10. Bb3 {[%clk 0:02:46]}  Nf6 {[%clk 0:02:26]} 11. f3 {[%clk 0:02:41]}  d5 {[%clk 0:02:25]} 12. Qe2 {[%clk 0:02:23]}  Bd6 {[%clk 0:01:56]} 13. O-O-O {[%clk 0:02:23]}  Be5 {[%clk 0:01:43]} 14. h4 {[%clk 0:02:20]}  Nd7 {[%clk 0:01:41]} 15. exd5 {[%clk 0:02:08]}  cxd5 {[%clk 0:01:38]} 16. Nxd5 {[%clk 0:02:03]}  exd5 {[%clk 0:01:32]} 17. f4 {[%clk 0:02:03]}  Bxb2+ {[%clk 0:01:06]} 18. Kxb2 {[%clk 0:02:03]}  O-O {[%clk 0:01:07]} 19. g5 {[%clk 0:02:00]}  Qc4 {[%clk 0:00:53]} 20. Qg2 {[%clk 0:01:50]}  Nc5 {[%clk 0:00:35]} 21. Bxc5 {[%clk 0:01:41]}  Qxc5 {[%clk 0:00:35]} 22. gxh6 {[%clk 0:01:40]}  g6 {[%clk 0:00:32]} 23. h5 {[%clk 0:00:59]}  Kh7 {[%clk 0:00:32]} 24. Rhg1 {[%clk 0:00:52]}  Rb6 {[%clk 0:00:15]} 25. Rxd5 {[%clk 0:00:51]}  Qe7 {[%clk 0:00:16]} 26. Re5 {[%clk 0:00:46]}  Qf6 {[%clk 0:00:16]} 27. hxg6+ {[%clk 0:00:25]}  fxg6 {[%clk 0:00:17]} 28. Qg5 {[%clk 0:00:24]}  Qxf4 {[%clk 0:00:07]} 29. Re7+ {[%clk 0:00:20]}  Kh8 {[%clk 0:00:06]} 30. Qxf4 {[%clk 0:00:17]}  Rxf4 {[%clk 0:00:06]} 31. Re8+ {[%clk 0:00:18]}  Kh7 {[%clk 0:00:07]} 32. Rxc8 {[%clk 0:00:18]}  Kxh6 {[%clk 0:00:08]} 33. Rh8+ {[%clk 0:00:13]}  Kg7 {[%clk 0:00:07]} 34. Rh3 {[%clk 0:00:13]}  a5 {[%clk 0:00:07]} 35. Kc1 {[%clk 0:00:11]}  a4 {[%clk 0:00:08]} 36. Bd5 {[%clk 0:00:11]}  Rd4 {[%clk 0:00:07]} 37. Rd3 {[%clk 0:00:09]}  Rdb4 {[%clk 0:00:08]} 38. Kd2 {[%clk 0:00:08]}  Rf6 {[%clk 0:00:08]} 39. Rg2 {[%clk 0:00:08]}  Rb1 {[%clk 0:00:07]} 40. Bf3 {[%clk 0:00:07]}  Ra1 {[%clk 0:00:06]} 41. Rd7+ {[%clk 0:00:06]}  Kh6 {[%clk 0:00:06]} 42. Rh2+ {[%clk 0:00:06]}  Kg5 {[%clk 0:00:06]} 43. Rg2+ {[%clk 0:00:05]}  Kh6 {[%clk 0:00:06]} 44. Bd5 {[%clk 0:00:04]}  Rff1 {[%clk 0:00:05]} 45. Kc3 {[%clk 0:00:03]}  Rf6 {[%clk 0:00:03]} 46. Bg8 {[%clk 0:00:03]}  g5 {[%clk 0:00:03]} 47. Bc4 {[%clk 0:00:03]}  Kg6 {[%clk 0:00:02]} 48. Bd3+ {[%clk 0:00:04]}  Kh5 {[%clk 0:00:02]} 49. Rh7+ {[%clk 0:00:04]}  Rh6 {[%clk 0:00:03]} 50. Rh2+ {[%clk 0:00:05]}  Kg4 {[%clk 0:00:04]} 51. R2xh6 {[%clk 0:00:05]} 1-0


[Site "https://www.chess.com"]

[Event "Titled Tuesday Blitz February 14 Early 2023"]
[White "Remizov, Yaroslav"]
[Black "Yeletsky, Ivan"]
[WhiteFideId "34134015"]
[BlackFideId "24180327"]
[WhiteElo "2421"]
[BlackElo "2494"]
[Result "0-1"]
[Round "11"]
[TimeControl "180+2"]
[Date "2023.02.14"]
[WhiteClock "0:00:06"]
[BlackClock "0:00:11"]

1. e4 {[%clk 0:02:59]}  e5 {[%clk 0:02:57]} 2. Nf3 {[%clk 0:02:58]}  Nc6 {[%clk 0:02:57]} 3. Bc4 {[%clk 0:02:59]}  Nf6 {[%clk 0:02:57]} 4. Ng5 {[%clk 0:02:59]}  d5 {[%clk 0:02:57]} 5. exd5 {[%clk 0:03:00]}  Na5 {[%clk 0:02:58]} 6. Bb5+ {[%clk 0:03:00]}  c6 {[%clk 0:02:59]} 7. dxc6 {[%clk 0:03:01]}  bxc6 {[%clk 0:03:00]} 8. Bd3 {[%clk 0:03:02]}  Nd5 {[%clk 0:03:00]} 9. Nf3 {[%clk 0:03:02]}  Bd6 {[%clk 0:03:00]} 10. O-O {[%clk 0:03:02]}  O-O {[%clk 0:02:59]} 11. Re1 {[%clk 0:03:02]}  f5 {[%clk 0:02:59]} 12. Nxe5 {[%clk 0:03:02]}  Qf6 {[%clk 0:03:00]} 13. Nf3 {[%clk 0:03:02]}  g5 {[%clk 0:03:00]} 14. c4 {[%clk 0:02:55]}  Nf4 {[%clk 0:03:00]} 15. Bf1 {[%clk 0:02:55]}  g4 {[%clk 0:03:00]} 16. d4 {[%clk 0:02:55]}  gxf3 {[%clk 0:02:54]} 17. Qxf3 {[%clk 0:02:56]}  Ne6 {[%clk 0:02:52]} 18. c5 {[%clk 0:02:47]}  Nxd4 {[%clk 0:02:42]} 19. Qc3 {[%clk 0:02:34]}  Be5 {[%clk 0:02:22]} 20. Qxa5 {[%clk 0:02:02]}  Nc2 {[%clk 0:01:52]} 21. Bg5 {[%clk 0:01:46]}  Qxg5 {[%clk 0:01:40]} 22. Rxe5 {[%clk 0:01:44]}  Nxa1 {[%clk 0:01:40]} 23. Qc7 {[%clk 0:01:02]}  Qg6 {[%clk 0:00:54]} 24. Bc4+ {[%clk 0:00:53]}  Kh8 {[%clk 0:00:54]} 25. Re7 {[%clk 0:00:39]}  f4 {[%clk 0:00:35]} 26. Bd3 {[%clk 0:00:20]}  Bf5 {[%clk 0:00:28]} 27. Qe5+ {[%clk 0:00:20]}  Qf6 {[%clk 0:00:22]} 28. Bxf5 {[%clk 0:00:20]}  Qxe5 {[%clk 0:00:15]} 29. Rxe5 {[%clk 0:00:21]}  Rab8 {[%clk 0:00:11]} 30. b3 {[%clk 0:00:19]}  Nxb3 {[%clk 0:00:07]} 31. axb3 {[%clk 0:00:19]}  Rxb3 {[%clk 0:00:07]} 32. Nd2 {[%clk 0:00:14]}  Rb2 {[%clk 0:00:07]} 33. Nf1 {[%clk 0:00:14]}  a5 {[%clk 0:00:06]} 34. Be4 {[%clk 0:00:14]}  Re2 {[%clk 0:00:06]} 35. f3 {[%clk 0:00:07]}  Rg8 {[%clk 0:00:06]} 36. g3 {[%clk 0:00:06]}  Rg7 {[%clk 0:00:07]} 37. Re8+ {[%clk 0:00:06]}  Rg8 {[%clk 0:00:07]} 38. Re7 {[%clk 0:00:06]}  Rg7 {[%clk 0:00:08]} 39. Re6 {[%clk 0:00:07]}  a4 {[%clk 0:00:07]} 40. Rxc6 {[%clk 0:00:07]}  Ra7 {[%clk 0:00:07]} 41. Rc8+ {[%clk 0:00:06]}  Kg7 {[%clk 0:00:08]} 42. c6 {[%clk 0:00:07]}  Re1 {[%clk 0:00:04]} 43. Kf2 {[%clk 0:00:02]}  Rc1 {[%clk 0:00:04]} 44. Nd2 {[%clk 0:00:02]}  a3 {[%clk 0:00:03]} 45. Nb3 {[%clk 0:00:02]}  a2 {[%clk 0:00:03]} 46. c7 {[%clk 0:00:01]}  Rcxc7 {[%clk 0:00:02]} 47. Rxc7+ {[%clk 0:00:01]}  Rxc7 {[%clk 0:00:03]} 48. gxf4 {[%clk 0:00:02]}  Rc3 {[%clk 0:00:03]} 49. Na1 {[%clk 0:00:02]}  Rc1 {[%clk 0:00:04]} 50. Nb3 {[%clk 0:00:02]}  Rb1 {[%clk 0:00:04]} 51. Bd5 {[%clk 0:00:02]}  Rxb3 {[%clk 0:00:04]} 52. Bxb3 {[%clk 0:00:02]}  a1=Q {[%clk 0:00:05]} 53. Bd5 {[%clk 0:00:03]}  Qb2+ {[%clk 0:00:06]} 54. Kg3 {[%clk 0:00:03]}  Kf6 {[%clk 0:00:07]} 55. Be4 {[%clk 0:00:04]}  Qc3 {[%clk 0:00:08]} 56. Bxh7 {[%clk 0:00:04]}  Qe1+ {[%clk 0:00:08]} 57. Kg2 {[%clk 0:00:04]}  Qe2+ {[%clk 0:00:06]} 58. Kg3 {[%clk 0:00:05]}  Qe1+ {[%clk 0:00:07]} 59. Kg2 {[%clk 0:00:05]}  Kg7 {[%clk 0:00:08]} 60. Be4 {[%clk 0:00:05]}  Qd2+ {[%clk 0:00:09]} 61. Kg3 {[%clk 0:00:05]}  Kh6 {[%clk 0:00:10]} 62. Bf5 {[%clk 0:00:05]}  Qe3 {[%clk 0:00:10]} 63. Bg4 {[%clk 0:00:06]}  Kg6 {[%clk 0:00:10]} 64. Bh3 {[%clk 0:00:05]}  Qg1+ {[%clk 0:00:10]} 65. Bg2 {[%clk 0:00:04]}  Kf5 {[%clk 0:00:10]} 66. h4 {[%clk 0:00:04]}  Qe1+ {[%clk 0:00:11]} 67. Kh3 {[%clk 0:00:04]}  Kxf4 {[%clk 0:00:12]} 68. Kh2 {[%clk 0:00:04]}  Qxh4+ {[%clk 0:00:11]} 69. Kg1 {[%clk 0:00:05]}  Kg3 {[%clk 0:00:12]} 70. Kf1 {[%clk 0:00:06]}  Qc4+ {[%clk 0:00:11]} 0-1


[Site "https://www.chess.com"]

[Event "Titled Tuesday Blitz February 14 Early 2023"]
[White "Lazavik, Denis"]
[Black "Rustemov, Alexander"]
[WhiteFideId "13515110"]
[BlackFideId "4119002"]
[WhiteElo "2544"]
[BlackElo "2525"]
[Result "1/2-1/2"]
[Round "11"]
[TimeControl "180+2"]
[Date "2023.02.14"]
[WhiteClock "0:00:04"]
[BlackClock "0:00:07"]

1. d4 {[%clk 0:02:59]}  d5 {[%clk 0:02:56]} 2. c4 {[%clk 0:02:59]}  c6 {[%clk 0:02:53]} 3. Nf3 {[%clk 0:02:58]}  Nf6 {[%clk 0:02:53]} 4. e3 {[%clk 0:02:58]}  a6 {[%clk 0:02:53]} 5. Bd3 {[%clk 0:02:56]}  Bg4 {[%clk 0:02:43]} 6. O-O {[%clk 0:02:55]}  e6 {[%clk 0:02:42]} 7. Nbd2 {[%clk 0:02:55]}  Nbd7 {[%clk 0:02:40]} 8. h3 {[%clk 0:02:55]}  Bxf3 {[%clk 0:02:33]} 9. Nxf3 {[%clk 0:02:45]}  Bd6 {[%clk 0:02:32]} 10. Qc2 {[%clk 0:02:32]}  O-O {[%clk 0:02:32]} 11. b3 {[%clk 0:02:32]}  Qe7 {[%clk 0:02:31]} 12. Bb2 {[%clk 0:02:32]}  Ba3 {[%clk 0:02:28]} 13. Rfd1 {[%clk 0:02:13]}  a5 {[%clk 0:02:26]} 14. Nd2 {[%clk 0:01:41]}  Bxb2 {[%clk 0:02:18]} 15. Qxb2 {[%clk 0:01:40]}  Rfd8 {[%clk 0:02:11]} 16. a3 {[%clk 0:01:38]}  e5 {[%clk 0:01:56]} 17. cxd5 {[%clk 0:01:37]}  Nxd5 {[%clk 0:01:55]} 18. dxe5 {[%clk 0:00:49]}  Qxe5 {[%clk 0:01:54]} 19. Qc2 {[%clk 0:00:49]}  g6 {[%clk 0:01:49]} 20. Rac1 {[%clk 0:00:48]}  N7f6 {[%clk 0:01:38]} 21. Nf3 {[%clk 0:00:45]}  Qe7 {[%clk 0:01:36]} 22. Qb2 {[%clk 0:00:45]}  Re8 {[%clk 0:01:14]} 23. Bc4 {[%clk 0:00:44]}  Rad8 {[%clk 0:01:12]} 24. Rd4 {[%clk 0:00:43]}  Nb6 {[%clk 0:00:47]} 25. Bf1 {[%clk 0:00:41]}  Rxd4 {[%clk 0:00:46]} 26. Nxd4 {[%clk 0:00:42]}  Nbd5 {[%clk 0:00:43]} 27. Nf3 {[%clk 0:00:37]}  Ne4 {[%clk 0:00:41]} 28. Bc4 {[%clk 0:00:35]}  Qf6 {[%clk 0:00:40]} 29. Qc2 {[%clk 0:00:31]}  Nb6 {[%clk 0:00:37]} 30. Bd3 {[%clk 0:00:30]}  Qe7 {[%clk 0:00:34]} 31. Bxe4 {[%clk 0:00:12]}  Qxe4 {[%clk 0:00:35]} 32. Qc5 {[%clk 0:00:12]}  Nd5 {[%clk 0:00:27]} 33. Qxa5 {[%clk 0:00:12]}  Qd3 {[%clk 0:00:21]} 34. Qd2 {[%clk 0:00:05]}  Qxb3 {[%clk 0:00:19]} 35. Ra1 {[%clk 0:00:06]}  Qc3 {[%clk 0:00:16]} 36. Qd1 {[%clk 0:00:05]}  Ra8 {[%clk 0:00:15]} 37. Rb1 {[%clk 0:00:04]}  b5 {[%clk 0:00:13]} 38. Rc1 {[%clk 0:00:03]}  Qxa3 {[%clk 0:00:13]} 39. Rxc6 {[%clk 0:00:04]}  Nc3 {[%clk 0:00:12]} 40. Qc2 {[%clk 0:00:03]}  b4 {[%clk 0:00:12]} 41. Nd4 {[%clk 0:00:03]}  Qa1+ {[%clk 0:00:09]} 42. Kh2 {[%clk 0:00:04]}  Qa2 {[%clk 0:00:09]} 43. Rb6 {[%clk 0:00:02]}  Qxc2 {[%clk 0:00:08]} 44. Nxc2 {[%clk 0:00:03]}  Ra2 {[%clk 0:00:08]} 45. Nxb4 {[%clk 0:00:04]}  Rxf2 {[%clk 0:00:08]} 46. Nd3 {[%clk 0:00:04]}  Re2 {[%clk 0:00:07]} 1/2-1/2


[Site "https://www.chess.com"]

[Event "Titled Tuesday Blitz February 14 Early 2023"]
[White "Vasquez Schroeder, Rodrigo"]
[Black "Shimanov, Aleksandr"]
[WhiteFideId "3400042"]
[BlackFideId "4198603"]
[WhiteElo "2524"]
[BlackElo "2581"]
[Result "1-0"]
[Round "11"]
[TimeControl "180+2"]
[Date "2023.02.14"]
[WhiteClock "0:00:15"]
[BlackClock "0:00:02"]

1. d4 {[%clk 0:03:00]}  Nf6 {[%clk 0:02:55]} 2. Nf3 {[%clk 0:03:00]}  e6 {[%clk 0:02:42]} 3. e3 {[%clk 0:03:00]}  h6 {[%clk 0:02:31]} 4. Bd3 {[%clk 0:03:00]}  g5 {[%clk 0:02:31]} 5. h3 {[%clk 0:02:55]}  Bg7 {[%clk 0:02:31]} 6. c4 {[%clk 0:02:51]}  d6 {[%clk 0:02:30]} 7. Nc3 {[%clk 0:02:50]}  Nc6 {[%clk 0:02:30]} 8. a3 {[%clk 0:02:50]}  Bd7 {[%clk 0:02:30]} 9. Rb1 {[%clk 0:02:49]}  a5 {[%clk 0:02:19]} 10. b4 {[%clk 0:02:48]}  axb4 {[%clk 0:02:19]} 11. axb4 {[%clk 0:02:49]}  Ne7 {[%clk 0:02:15]} 12. b5 {[%clk 0:02:48]}  b6 {[%clk 0:01:57]} 13. Qc2 {[%clk 0:02:43]}  Bc8 {[%clk 0:01:52]} 14. Nd2 {[%clk 0:02:33]}  Bb7 {[%clk 0:01:52]} 15. Nde4 {[%clk 0:02:31]}  Nd7 {[%clk 0:01:44]} 16. O-O {[%clk 0:02:28]}  f5 {[%clk 0:01:43]} 17. Ng3 {[%clk 0:02:25]}  Nf6 {[%clk 0:01:43]} 18. d5 {[%clk 0:02:17]}  exd5 {[%clk 0:01:31]} 19. Nxf5 {[%clk 0:02:09]}  Nxf5 {[%clk 0:01:31]} 20. Bxf5 {[%clk 0:02:09]}  Qe7 {[%clk 0:01:22]} 21. cxd5 {[%clk 0:02:05]}  Nxd5 {[%clk 0:01:18]} 22. Bg6+ {[%clk 0:01:57]}  Kd8 {[%clk 0:01:17]} 23. Nxd5 {[%clk 0:01:52]}  Bxd5 {[%clk 0:01:18]} 24. e4 {[%clk 0:01:35]}  Ra2 {[%clk 0:01:10]} 25. Qd3 {[%clk 0:01:28]}  Bb7 {[%clk 0:01:07]} 26. Be3 {[%clk 0:01:22]}  Kc8 {[%clk 0:01:04]} 27. Rfc1 {[%clk 0:01:20]}  Kb8 {[%clk 0:01:04]} 28. Qc4 {[%clk 0:01:17]}  Ra7 {[%clk 0:00:57]} 29. Rc2 {[%clk 0:01:15]}  Rc8 {[%clk 0:00:32]} 30. Rbc1 {[%clk 0:01:14]}  Ba8 {[%clk 0:00:24]} 31. Bxb6 {[%clk 0:01:07]}  Rb7 {[%clk 0:00:14]} 32. Be3 {[%clk 0:01:07]}  Qe5 {[%clk 0:00:14]} 33. Bf5 {[%clk 0:00:49]}  Rd8 {[%clk 0:00:14]} 34. b6 {[%clk 0:00:42]}  c5 {[%clk 0:00:14]} 35. Qa6 {[%clk 0:00:41]}  Re7 {[%clk 0:00:09]} 36. Ra2 {[%clk 0:00:35]}  Bxe4 {[%clk 0:00:06]} 37. Bxe4 {[%clk 0:00:33]}  Qxe4 {[%clk 0:00:07]} 38. Ra4 {[%clk 0:00:20]}  Qc6 {[%clk 0:00:06]} 39. Rb1 {[%clk 0:00:19]}  Qb7 {[%clk 0:00:04]} 40. Qb5 {[%clk 0:00:19]}  Qd7 {[%clk 0:00:03]} 41. Qb3 {[%clk 0:00:18]}  Qc6 {[%clk 0:00:03]} 42. Ra6 {[%clk 0:00:16]}  Rb7 {[%clk 0:00:03]} 43. Qa2 {[%clk 0:00:16]}  Kc8 {[%clk 0:00:03]} 44. Qe6+ {[%clk 0:00:14]}  Qd7 {[%clk 0:00:03]} 45. Qd5 {[%clk 0:00:15]}  Qe7 {[%clk 0:00:02]} 46. Qc6+ {[%clk 0:00:14]}  Kb8 {[%clk 0:00:02]} 47. Qa4 {[%clk 0:00:14]}  Kc8 {[%clk 0:00:01]} 48. Ra8+ {[%clk 0:00:14]}  Rb8 {[%clk 0:00:02]} 49. Qc6+ {[%clk 0:00:15]} 1-0


[Site "https://www.chess.com"]

[Event "Titled Tuesday Blitz February 14 Early 2023"]
[White "Demchenko, Anton"]
[Black "Postny, Evgeny"]
[WhiteFideId "4160258"]
[BlackFideId "2804344"]
[WhiteElo "2623"]
[BlackElo "2549"]
[Result "0-1"]
[Round "11"]
[TimeControl "180+2"]
[Date "2023.02.14"]
[WhiteClock "0:00:03"]
[BlackClock "0:00:06"]

1. e4 {[%clk 0:03:00]}  c5 {[%clk 0:02:57]} 2. Nf3 {[%clk 0:03:00]}  e6 {[%clk 0:02:58]} 3. d4 {[%clk 0:02:59]}  cxd4 {[%clk 0:02:59]} 4. Nxd4 {[%clk 0:02:59]}  a6 {[%clk 0:02:59]} 5. Nd2 {[%clk 0:02:58]}  Bc5 {[%clk 0:02:51]} 6. c3 {[%clk 0:02:50]}  Nc6 {[%clk 0:02:47]} 7. N4b3 {[%clk 0:02:47]}  Be7 {[%clk 0:02:46]} 8. Nc4 {[%clk 0:02:44]}  d5 {[%clk 0:02:43]} 9. exd5 {[%clk 0:02:40]}  exd5 {[%clk 0:02:44]} 10. Ne3 {[%clk 0:02:38]}  Nf6 {[%clk 0:02:44]} 11. Be2 {[%clk 0:02:39]}  O-O {[%clk 0:02:43]} 12. O-O {[%clk 0:02:39]}  Bd6 {[%clk 0:02:39]} 13. Bf3 {[%clk 0:02:30]}  Be6 {[%clk 0:02:30]} 14. g3 {[%clk 0:02:22]}  Bh3 {[%clk 0:02:10]} 15. Re1 {[%clk 0:02:22]}  Ne5 {[%clk 0:02:10]} 16. Bh1 {[%clk 0:02:20]}  Re8 {[%clk 0:02:02]} 17. Nd4 {[%clk 0:02:18]}  Bc5 {[%clk 0:01:52]} 18. Bg2 {[%clk 0:01:13]}  Qd7 {[%clk 0:01:46]} 19. f3 {[%clk 0:01:00]}  Nc4 {[%clk 0:01:36]} 20. b3 {[%clk 0:00:54]}  Ne5 {[%clk 0:01:28]} 21. Bb2 {[%clk 0:00:49]}  h5 {[%clk 0:01:23]} 22. Qd2 {[%clk 0:00:45]}  Bxg2 {[%clk 0:01:14]} 23. Kxg2 {[%clk 0:00:45]}  h4 {[%clk 0:01:14]} 24. Rad1 {[%clk 0:00:43]}  h3+ {[%clk 0:01:11]} 25. Kf2 {[%clk 0:00:42]}  Nxf3 {[%clk 0:00:40]} 26. Kxf3 {[%clk 0:00:40]}  Ne4 {[%clk 0:00:39]} 27. Qd3 {[%clk 0:00:20]}  Re5 {[%clk 0:00:26]} 28. g4 {[%clk 0:00:16]}  Rae8 {[%clk 0:00:21]} 29. Nef5 {[%clk 0:00:14]}  g6 {[%clk 0:00:13]} 30. Ng3 {[%clk 0:00:14]}  Ng5+ {[%clk 0:00:13]} 31. Kf2 {[%clk 0:00:14]}  Qxg4 {[%clk 0:00:13]} 32. Rxe5 {[%clk 0:00:12]}  Rxe5 {[%clk 0:00:14]} 33. Re1 {[%clk 0:00:11]}  Bxd4+ {[%clk 0:00:09]} 34. cxd4 {[%clk 0:00:08]}  Rxe1 {[%clk 0:00:09]} 35. Kxe1 {[%clk 0:00:09]}  Nf3+ {[%clk 0:00:09]} 36. Kf2 {[%clk 0:00:09]}  Nxh2 {[%clk 0:00:10]} 37. Qe3 {[%clk 0:00:05]}  Qc8 {[%clk 0:00:04]} 38. Ba3 {[%clk 0:00:03]}  Ng4+ {[%clk 0:00:04]} 39. Ke2 {[%clk 0:00:02]}  Nxe3 {[%clk 0:00:05]} 40. Kxe3 {[%clk 0:00:03]}  Qg4 {[%clk 0:00:06]} 0-1


[Site "https://www.chess.com"]

[Event "Titled Tuesday Blitz February 14 Early 2023"]
[White "Sychev, Klementy"]
[Black "Kukhmazov, Arsen"]
[WhiteFideId "4114060"]
[BlackFideId "24108260"]
[WhiteElo "2547"]
[BlackElo "2512"]
[Result "0-1"]
[Round "11"]
[TimeControl "180+2"]
[Date "2023.02.14"]
[WhiteClock "0:00:01"]
[BlackClock "0:00:02"]

1. e4 {[%clk 0:03:00]}  c6 {[%clk 0:03:00]} 2. c4 {[%clk 0:03:01]}  d5 {[%clk 0:03:01]} 3. cxd5 {[%clk 0:03:02]}  cxd5 {[%clk 0:03:02]} 4. exd5 {[%clk 0:03:02]}  Qxd5 {[%clk 0:02:56]} 5. Nc3 {[%clk 0:03:01]}  Qd8 {[%clk 0:02:56]} 6. d4 {[%clk 0:03:02]}  e6 {[%clk 0:02:54]} 7. Nf3 {[%clk 0:03:02]}  Nf6 {[%clk 0:02:54]} 8. Bd3 {[%clk 0:02:55]}  Be7 {[%clk 0:02:53]} 9. O-O {[%clk 0:02:55]}  Nc6 {[%clk 0:02:54]} 10. Qe2 {[%clk 0:02:53]}  Nb4 {[%clk 0:02:49]} 11. Bc4 {[%clk 0:02:49]}  O-O {[%clk 0:02:49]} 12. Rd1 {[%clk 0:02:48]}  b6 {[%clk 0:02:38]} 13. Ne5 {[%clk 0:02:44]}  Bb7 {[%clk 0:02:38]} 14. Bg5 {[%clk 0:02:39]}  Nbd5 {[%clk 0:02:34]} 15. Rac1 {[%clk 0:02:36]}  Rc8 {[%clk 0:02:03]} 16. Bb3 {[%clk 0:02:31]}  Nxc3 {[%clk 0:01:56]} 17. bxc3 {[%clk 0:01:51]}  Ne4 {[%clk 0:01:56]} 18. Bxe7 {[%clk 0:01:46]}  Qxe7 {[%clk 0:01:57]} 19. Qe3 {[%clk 0:01:42]}  Nd6 {[%clk 0:01:52]} 20. Re1 {[%clk 0:01:39]}  Qf6 {[%clk 0:01:47]} 21. a4 {[%clk 0:01:25]}  Rfe8 {[%clk 0:01:44]} 22. f3 {[%clk 0:01:21]}  Red8 {[%clk 0:01:23]} 23. Qf2 {[%clk 0:01:13]}  h6 {[%clk 0:01:12]} 24. Red1 {[%clk 0:01:12]}  Qe7 {[%clk 0:00:54]} 25. Qa2 {[%clk 0:01:09]}  Nf5 {[%clk 0:00:44]} 26. Re1 {[%clk 0:01:07]}  Bd5 {[%clk 0:00:43]} 27. Bxd5 {[%clk 0:00:48]}  Rxd5 {[%clk 0:00:44]} 28. Qb3 {[%clk 0:00:44]}  Qg5 {[%clk 0:00:35]} 29. Qb2 {[%clk 0:00:41]}  f6 {[%clk 0:00:23]} 30. Ng4 {[%clk 0:00:38]}  h5 {[%clk 0:00:21]} 31. Nf2 {[%clk 0:00:31]}  Nh4 {[%clk 0:00:21]} 32. Ne4 {[%clk 0:00:31]}  Qg6 {[%clk 0:00:12]} 33. Qe2 {[%clk 0:00:29]}  Kh7 {[%clk 0:00:04]} 34. Kh1 {[%clk 0:00:29]}  Re8 {[%clk 0:00:04]} 35. Rc2 {[%clk 0:00:28]}  Nf5 {[%clk 0:00:04]} 36. Nf2 {[%clk 0:00:25]}  e5 {[%clk 0:00:05]} 37. Ne4 {[%clk 0:00:23]}  Rdd8 {[%clk 0:00:02]} 38. dxe5 {[%clk 0:00:20]}  Rxe5 {[%clk 0:00:03]} 39. Rd2 {[%clk 0:00:21]}  Rde8 {[%clk 0:00:03]} 40. Rdd1 {[%clk 0:00:20]}  h4 {[%clk 0:00:04]} 41. Qf2 {[%clk 0:00:20]}  Qh6 {[%clk 0:00:04]} 42. Rg1 {[%clk 0:00:18]}  Ng3+ {[%clk 0:00:05]} 43. Nxg3 {[%clk 0:00:17]}  hxg3 {[%clk 0:00:05]} 44. Qxg3 {[%clk 0:00:18]}  Rg5 {[%clk 0:00:06]} 45. Qf4 {[%clk 0:00:17]}  Ree5 {[%clk 0:00:06]} 46. Rd7 {[%clk 0:00:16]}  Ref5 {[%clk 0:00:05]} 47. Qc7 {[%clk 0:00:15]}  Rh5 {[%clk 0:00:05]} 48. Re1 {[%clk 0:00:12]}  Re5 {[%clk 0:00:05]} 49. Rxe5 {[%clk 0:00:10]}  Rxh2+ {[%clk 0:00:05]} 50. Kg1 {[%clk 0:00:10]}  Rh1+ {[%clk 0:00:05]} 51. Kf2 {[%clk 0:00:11]}  Qh4+ {[%clk 0:00:05]} 52. Ke3 {[%clk 0:00:06]}  Qe1+ {[%clk 0:00:02]} 53. Kd4 {[%clk 0:00:06]}  fxe5+ {[%clk 0:00:02]} 54. Kd5 {[%clk 0:00:05]}  Qd2+ {[%clk 0:00:02]} 55. Kc6 {[%clk 0:00:05]}  Qh6+ {[%clk 0:00:03]} 56. Kb7 {[%clk 0:00:05]}  Rg1 {[%clk 0:00:03]} 57. Qxe5 {[%clk 0:00:05]}  Rxg2 {[%clk 0:00:04]} 58. f4 {[%clk 0:00:04]}  Rg4 {[%clk 0:00:03]} 59. f5 {[%clk 0:00:03]}  Qg5 {[%clk 0:00:03]} 60. Qe6 {[%clk 0:00:02]}  Rf4 {[%clk 0:00:01]} 61. Rd1 {[%clk 0:00:02]}  Qg2+ {[%clk 0:00:02]} 62. Kb8 {[%clk 0:00:02]}  Qg3 {[%clk 0:00:01]} 63. Rh1+ {[%clk 0:00:01]}  Rh4+ {[%clk 0:00:02]} 64. Ka8 {[%clk 0:00:01]}  Rxh1 {[%clk 0:00:02]} 65. f6 {[%clk 0:00:01]}  Qg6 {[%clk 0:00:02]} 0-1


[Site "https://www.chess.com"]